fUSD/lending_fUSD_20250804
["ID","MTS","AMOUNT","RATE_DAILY","PERIOD"]
[377325485,1754346641577,-600.0,0.00049582,120]
[377325486,1754346641587,-600.0,0.00049582,120]
[377325487,1754346641597,-172.664148,0.00049582,120]
[377325488,1754346641606,-600.0,0.00049582,120]
[377325489,1754346641616,-600.0,0.00049582,120]
[377325490,1754346641625,-300.0,0.00049582,120]
[377325491,1754346641635,-311.1,0.00049582,120]
[377325492,1754346641644,-151.0,0.00049582,120]
[377325493,1754346641653,-322.6107,0.00049582,120]
[377325494,1754346641663,-151.0,0.00049582,120]
[377325495,1754346641672,-500.0,0.00049582,120]
[377325496,1754346641682,-334.5472959,0.00049582,120]
[377325497,1754346641692,-151.0,0.00049582,120]
[377325498,1754346641701,-500.0,0.00049582,120]
[377325499,1754346641711,-500.0,0.00049582,120]
[377325500,1754346641720,-346.92554585,0.00049582,120]
[377325501,1754346641729,-151.0,0.00049582,120]
[377325502,1754346641738,-500.0,0.00049582,120]
[377325503,1754346641748,-342.16640917,0.00049582,120]
[377325504,1754346641758,-500.0,0.00049582,120]
[377325505,1754346641767,-500.0,0.00049582,120]
[377325506,1754346641777,-151.0,0.00049582,120]
[377325507,1754346641787,-500.0,0.00049582,120]
[377325508,1754346641798,-500.0,0.00049582,120]
[377325509,1754346641809,-151.0,0.00049582,120]
[377325510,1754346641820,-500.0,0.00049582,120]
[377325511,1754346641832,-500.0,0.00049582,120]
[377325512,1754346641842,-151.0,0.00049582,120]
[377325513,1754346641851,-500.0,0.00049582,120]
[377325514,1754346641862,-151.0,0.00049582,120]
[377325515,1754346641874,-500.0,0.00049582,120]
[377325516,1754346641886,-500.0,0.00049582,120]
[377325517,1754346641897,-151.0,0.00049582,120]
[377325518,1754346641908,-500.0,0.00049582,120]
[377325519,1754346641919,-500.0,0.00049582,120]
[377325520,1754346641930,-151.0,0.00049582,120]
[377325521,1754346641941,-500.0,0.00049582,120]
[377325522,1754346641952,-151.0,0.00049582,120]
[377325523,1754346641961,-500.0,0.00049582,120]
[377325524,1754346641971,-500.0,0.00049582,120]
[377325525,1754346641981,-500.0,0.00049582,120]
[377325526,1754346641991,-151.0,0.00049582,120]
[377325527,1754346642001,-500.0,0.00049582,120]
[377325528,1754346642011,-500.0,0.00049582,120]
[377325529,1754346642021,-151.0,0.00049582,120]
[377325530,1754346642034,-500.0,0.00049582,120]
[377325531,1754346642045,-151.0,0.00049582,120]
[377325532,1754346642054,-500.0,0.00049582,120]
[377325533,1754346642064,-500.0,0.00049582,120]
[377325534,1754346642075,-151.0,0.00049582,120]
[377325535,1754346642084,-500.0,0.00049582,120]
[377325536,1754346642094,-500.0,0.00049582,120]
[377325537,1754346642102,-151.0,0.00049582,120]
[377325538,1754346642112,-500.0,0.00049582,120]
[377325539,1754346642121,-500.0,0.00049582,120]
[377325540,1754346642131,-151.0,0.00049582,120]
[377325541,1754346642140,-151.0,0.00049582,120]
[377325542,1754346642150,-151.0,0.00049582,120]
[377325543,1754346642160,-500.0,0.00049582,120]
[377325544,1754346642169,-500.0,0.00049582,120]
[377325545,1754346642179,-151.0,0.00049582,120]
[377325546,1754346642189,-500.0,0.00049582,120]
[377325547,1754346642198,-151.0,0.00049582,120]
[377325548,1754346642208,-172.664148,0.00049582,120]
[377325549,1754346642217,-500.0,0.00049582,120]
[377325550,1754346642227,-151.0,0.00049582,120]
[377325551,1754346642237,-500.0,0.00049582,120]
[377325552,1754346642246,-248.177429,0.00049582,120]
[377325553,1754346642255,-500.0,0.00049582,120]
[377325554,1754346642265,-500.0,0.00049582,120]
[377325555,1754346642274,-500.0,0.00049582,120]
[377325556,1754346642286,-500.0,0.00049582,120]
[377325557,1754346642296,-500.0,0.00049582,120]
[377325558,1754346642306,-500.0,0.00049582,120]
[377325559,1754346642316,-500.0,0.00049582,120]
[377325560,1754346642326,-300.0,0.00049582,120]
[377325561,1754346642336,-500.0,0.00049582,120]
[377325562,1754346642346,-300.0,0.00049582,120]
[377325563,1754346642355,-500.0,0.00049582,120]
[377325564,1754346642365,-300.0,0.00049582,120]
[377325565,1754346642375,-500.0,0.00049582,120]
[377325566,1754346642384,-300.0,0.00049582,120]
[377325567,1754346642394,-500.0,0.00049582,120]
[377325568,1754346642403,-300.0,0.00049582,120]
[377325569,1754346642412,-2237.30245486,0.00049583,30]
[377325570,1754346642422,-666.0,0.00049583,30]
[377325571,1754346642431,-300.0,0.00049583,30]
[377325572,1754346642440,-300.0,0.00049583,30]
[377325573,1754346642449,-151.0,0.00049583,120]
[377325574,1754346642459,-151.0,0.00049583,120]
[377325575,1754346642468,-235.52076,0.00049583,120]
[377325576,1754346642478,-174.72232,0.00049583,120]
[377325577,1754346642487,-174.72232,0.00049583,120]
[377325578,1754346642497,-151.0,0.00049583,120]
[377325579,1754346642506,-154.868797,0.00049583,120]
[377325580,1754346642516,-151.0,0.00049583,120]
[377325581,1754346642526,-151.0,0.00049583,120]
[377325582,1754346642536,-153.617651,0.00049583,120]
[377325583,1754346642545,-151.0,0.00049583,120]
[377325584,1754346642555,-151.0,0.00049583,120]
[377325585,1754346642565,-200.0,0.00049583,7]
[377325586,1754346642575,-150.0,0.00049583,120]
[377325587,1754346642585,-286.26,0.00049583,2]
[377325588,1754346642599,-1416.068,0.00049583,47]
[377325589,1754346642608,-28235.4883268,0.00049583,4]
[377325590,1754346642618,-474.7776981,0.00049584,30]
[377325591,1754346642627,-84706.4649805,0.00049584,4]
[377325592,1754346642637,-241.669159,0.00049584,120]
[377325593,1754346642646,-151.0,0.00049584,120]
[377325594,1754346642656,-151.0,0.00049584,120]
[377325595,1754346642665,-151.0,0.00049584,120]
[377325596,1754346642674,-151.0,0.00049584,120]
[377325597,1754346642684,-151.0,0.00049584,120]
[377325598,1754346642693,-151.0,0.00049584,120]
[377325599,1754346642703,-151.0,0.00049584,120]
[377325600,1754346642712,-196.700436,0.00049584,120]
[377325601,1754346642722,-151.0,0.00049584,120]
[377325602,1754346642731,-151.0,0.00049584,120]
[377325603,1754346642741,-151.0,0.00049584,120]
[377325604,1754346642751,-151.0,0.00049584,120]
[377325605,1754346642760,-151.0,0.00049584,120]
[377325606,1754346642769,-151.0,0.00049584,120]
[377325607,1754346642779,-151.0,0.00049584,120]
[377325608,1754346642788,-151.0,0.00049584,120]
[377325609,1754346642798,-151.0,0.00049584,120]
[377325610,1754346642807,-151.0,0.00049584,120]
[377325611,1754346642817,-172.664148,0.00049584,120]
[377325612,1754346642826,-172.664148,0.00049584,120]
[377325613,1754346642836,-1028.7703496,0.00049586,90]
[377325614,1754346642847,-1028.77034961,0.00049586,90]
[377325615,1754346642856,-151.0,0.00049587,120]
[377325616,1754346642866,-151.0,0.00049587,120]
[377325617,1754346642880,-276.4625633,0.00049587,120]
[377325618,1754346642891,-151.0,0.00049587,120]
[377325619,1754346642902,-151.0,0.00049587,120]
[377325620,1754346642911,-151.0,0.00049587,120]
[377325621,1754346642923,-151.0,0.00049587,120]
[377325622,1754346642933,-151.0,0.00049587,120]
[377325623,1754346642944,-151.0,0.00049587,90]
[377325626,1754346642954,-151.0,0.00049587,120]
[377325629,1754346642964,-151.0,0.00049587,120]
[377325630,1754346642974,-151.0,0.00049587,120]
[377325631,1754346642984,-151.0,0.00049587,120]
[377325632,1754346642994,-151.0,0.00049587,120]
[377325633,1754346643003,-174.72232,0.00049587,120]
[377325634,1754346643013,-174.72232,0.00049587,120]
[377325635,1754346643023,-151.0,0.00049587,120]
[377325636,1754346643032,-151.0,0.00049587,120]
[377325637,1754346643042,-151.0,0.00049587,120]
[377325638,1754346643052,-151.0,0.00049587,120]
[377325639,1754346643061,-201.987886,0.00049587,120]
[377325640,1754346643075,-201.987886,0.00049587,120]
[377325641,1754346643089,-1213.0,0.00049587,14]
[377325642,1754346643099,-1213.0,0.00049587,14]
[377325643,1754346643108,-1213.0,0.00049587,14]
[377325644,1754346643118,-1213.0,0.00049587,14]
[377325645,1754346643128,-151.0,0.0004959,120]
[377325646,1754346643139,-151.0,0.0004959,120]
[377325647,1754346643150,-150.0,0.0004959,7]
[377325648,1754346643160,-1213.0,0.0004959,14]
[377325649,1754346643170,-482.51375635,0.0004959,14]
[377325650,1754346643184,-151.0,0.0004959,120]
[377325651,1754346643194,-151.0,0.0004959,120]
[377325652,1754346643204,-151.0,0.00049591,120]
[377325653,1754346643214,-260.265501,0.00049591,120]
[377325654,1754346643223,-152.458214,0.00049591,120]
[377325655,1754346643235,-151.0,0.00049591,120]
[377325656,1754346643244,-1000.0,0.00049591,2]
[377325657,1754346643254,-1000.0,0.00049591,2]
[377325658,1754346643265,-150.0,0.00049592,7]
[377325659,1754346643274,-666.0,0.00049593,30]
[377325660,1754346643285,-666.0,0.00049593,30]
[377325661,1754346643294,-300.0,0.00049593,30]
[377325662,1754346643306,-151.0,0.00049593,120]
[377325663,1754346643317,-151.0,0.00049593,30]
[377325664,1754346643326,-151.0,0.00049593,120]
[377325665,1754346643336,-159.691576,0.00049593,120]
[377325666,1754346643346,-203.974972,0.00049593,120]
[377325667,1754346643357,-151.0,0.00049593,120]
[377325668,1754346643367,-151.0,0.00049593,120]
[377325669,1754346643378,-305.998814,0.00049593,120]
[377325670,1754346643387,-305.998814,0.00049593,120]
[377325671,1754346643397,-151.0,0.00049593,120]
[377325672,1754346643406,-151.0,0.00049593,120]
[377325673,1754346643415,-151.0,0.00049593,120]
[377325674,1754346643425,-151.0,0.00049593,120]
[377325675,1754346643435,-151.0,0.00049593,120]
[377325677,1754346643444,-151.0,0.00049593,120]
[377325679,1754346643454,-151.0,0.00049593,120]
[377325681,1754346643463,-151.0,0.00049593,60]
[377325683,1754346643472,-151.0,0.00049593,120]
[377325686,1754346643481,-151.0,0.00049593,60]
[377325688,1754346643491,-152.793126,0.00049593,120]
[377325689,1754346643500,-151.0,0.00049593,120]
[377325690,1754346643510,-151.0,0.00049593,120]
[377325691,1754346643519,-684.07,0.00049593,120]
[377325692,1754346643529,-151.0,0.00049593,120]
[377325693,1754346643538,-204.171797,0.00049593,120]
[377325694,1754346643548,-204.171797,0.00049593,120]
[377325695,1754346643557,-151.0,0.00049593,120]
[377325696,1754346643566,-151.0,0.00049593,120]
[377325697,1754346643575,-41558.56998256,0.00049593,120]
[377325698,1754346643584,-1213.0,0.00049594,14]
[377325699,1754346643595,-1213.0,0.00049594,14]
[377325700,1754346643604,-437378.01205551,0.00049594,30]
[377325701,1754346643614,-151.0,0.00049594,120]
[377325702,1754346643623,-151.0,0.00049594,120]
[377325703,1754346643634,-151.0,0.00049594,120]
[377325704,1754346643644,-151.0,0.00049594,120]
[377325705,1754346643655,-151.0,0.00049594,90]
[377325706,1754346643666,-305.998814,0.00049594,120]
[377325707,1754346643677,-305.998814,0.00049594,120]
[377325708,1754346643687,-157.40748,0.00049594,120]
[377325709,1754346643697,-154.531672,0.00049594,120]
[377325710,1754346643708,-181.641212,0.00049594,120]
[377325711,1754346643718,-151.0,0.00049594,120]
[377325712,1754346643730,-151.0,0.00049594,120]
[377325713,1754346643740,-174.72232,0.00049594,120]
[377325714,1754346643750,-174.72232,0.00049594,120]
[377325715,1754346643761,-151.0,0.00049594,120]
[377325716,1754346643772,-151.0,0.00049594,120]
[377325717,1754346643783,-151.0,0.00049594,120]
[377325718,1754346643796,-151.0,0.00049594,120]
[377325719,1754346643806,-186.86586,0.00049594,120]
[377325720,1754346643815,-151.0,0.00049594,120]
[377325721,1754346643825,-151.0,0.00049594,120]
[377325722,1754346643835,-151.0,0.00049594,120]
[377325723,1754346643845,-151.0,0.00049594,60]
[377325724,1754346643854,-151.0,0.00049594,120]
[377325725,1754346643865,-151.0,0.00049594,60]
[377325726,1754346643881,-151.0,0.00049594,120]
[377325727,1754346643891,-151.0,0.00049594,120]
[377325728,1754346643901,-151.0,0.00049594,120]
[377325729,1754346643910,-151.0,0.00049594,120]
[377325730,1754346643921,-151.0,0.00049594,60]
[377325731,1754346643930,-151.0,0.00049594,120]
[377325732,1754346643940,-151.0,0.00049594,120]
[377325733,1754346643950,-151.0,0.00049594,120]
[377325734,1754346643959,-151.0,0.00049594,120]
[377325735,1754346643969,-151.0,0.00049594,120]
[377325736,1754346643979,-151.0,0.00049594,120]
[377325737,1754346643990,-151.0,0.00049594,120]
[377325738,1754346644000,-151.0,0.00049594,120]
[377325739,1754346644010,-151.0,0.00049594,120]
[377325740,1754346644020,-151.0,0.00049594,60]
[377325741,1754346644031,-151.0,0.00049594,120]
[377325742,1754346644042,-151.0,0.00049594,120]
[377325743,1754346644052,-151.0,0.00049594,120]
[377325744,1754346644063,-154.867533,0.00049594,120]
[377325745,1754346644073,-1139.866754,0.00049594,120]
[377325746,1754346644084,-1139.866754,0.00049594,120]
[377325747,1754346644096,-151.0,0.00049594,120]
[377325748,1754346644107,-151.0,0.00049594,120]
[377325749,1754346644118,-157.601212,0.00049594,120]
[377325750,1754346644128,-157.601212,0.00049594,120]
[377325751,1754346644139,-151.0,0.00049594,120]
[377325752,1754346644149,-151.0,0.00049594,120]
[377325753,1754346644160,-151.0,0.00049594,120]
[377325754,1754346644172,-151.0,0.00049594,120]
[377325755,1754346644182,-151.0,0.00049594,120]
[377325756,1754346644193,-151.0,0.00049594,120]
[377325757,1754346644203,-151.0,0.00049594,120]
[377325758,1754346644212,-254.827175,0.00049594,20]
[377325759,1754346644222,-151.0,0.00049594,120]
[377325760,1754346644233,-254.827175,0.00049594,20]
[377325761,1754346644243,-151.0,0.00049594,120]
[377325762,1754346644253,-151.0,0.00049594,120]
[377325763,1754346644263,-151.0,0.00049594,120]
[377325764,1754346644272,-255.910624,0.00049594,120]
[377325765,1754346644282,-153.675116,0.00049594,120]
[377325766,1754346644291,-151.0,0.00049594,120]
[377325767,1754346644300,-259.578622,0.00049594,120]
[377325768,1754346644310,-151.0,0.00049594,120]
[377325769,1754346644320,-259.578622,0.00049594,120]
[377325770,1754346644329,-151.0,0.00049594,120]
[377325771,1754346644339,-658.630549,0.00049594,120]
[377325772,1754346644349,-658.630549,0.00049594,120]
[377325773,1754346644361,-151.0,0.00049594,120]
[377325774,1754346644371,-201.987886,0.00049594,120]
[377325775,1754346644381,-151.0,0.00049594,120]
[377325776,1754346644391,-201.987886,0.00049594,120]
[377325777,1754346644400,-151.0,0.00049594,120]
[377325778,1754346644410,-204.171797,0.00049594,120]
[377325779,1754346644420,-204.171797,0.00049594,120]
[377325780,1754346644429,-172.664148,0.00049594,120]
[377325781,1754346644439,-151.0,0.00049594,120]
[377325782,1754346644684,-151.0,0.00049594,120]
[377325783,1754346644721,-172.664148,0.00049594,120]
[377325784,1754346644731,-151.0,0.00049594,120]
[377325785,1754346644740,-150.0,0.00049596,7]
[377325786,1754346644750,-267.64904475,0.00049597,2]
[377325787,1754346644760,-151.0,0.00049598,120]
[377325788,1754346644770,-151.0,0.00049598,120]
[377325789,1754346644780,-151.0,0.00049598,120]
[377325790,1754346644790,-1900.0,0.000496,18]
[377325791,1754346644800,-1862.32293627,0.00049607,2]
[377325792,1754346644810,-151.0,0.00049607,120]
[377325793,1754346644819,-151.0,0.00049607,120]
[377325794,1754346644829,-150.0,0.00049609,7]
[377325795,1754346644839,-151.0,0.00049617,120]
[377325796,1754346644848,-151.0,0.00049617,30]
[377325797,1754346644858,-151.0,0.00049617,120]
[377325798,1754346644867,-150.0,0.00049637,7]
[377325799,1754346644882,-150.0,0.00049653,7]
[377325800,1754346644891,-594.54516425,0.00049659,60]
[377325801,1754346644901,-150.0,0.00049671,120]
[377325802,1754346644911,-150.0,0.00049671,120]
[377325803,1754346644921,-150.0,0.00049671,120]
[377325804,1754346644931,-571.63716132,0.00049671,120]
[377325805,1754346644941,-150.0,0.00049671,120]
[377325806,1754346644951,-500.0,0.00049671,120]
[377325807,1754346644962,-150.0,0.00049671,120]
[377325808,1754346644972,-150.0,0.00049671,120]
[377325809,1754346644981,-500.0,0.00049671,120]
[377325810,1754346644991,-500.0,0.00049671,120]
[377325811,1754346645000,-500.0,0.00049671,120]
[377325812,1754346645011,-447.0,0.00049671,120]
[377325813,1754346645023,-150.0,0.00049671,120]
[377325814,1754346645034,-500.0,0.00049671,120]
[377325815,1754346645045,-500.0,0.00049671,120]
[377325816,1754346645057,-550.0,0.00049671,120]
[377325817,1754346645067,-150.0,0.00049671,120]
[377325818,1754346645077,-500.0,0.00049671,120]
[377325819,1754346645088,-150.0,0.00049671,120]
[377325820,1754346645097,-150.0,0.00049671,120]
[377325821,1754346645108,-500.0,0.00049671,120]
[377325822,1754346645119,-150.03637338,0.00049675,120]
[377325823,1754346645129,-150.0,0.00049679,7]
[377325824,1754346645140,-150.0,0.00049688,7]
[377325825,1754346645151,-151.0,0.0004969,120]
[377325826,1754346645162,-174.628696,0.0004969,120]
[377325827,1754346645173,-150.0,0.00049692,7]
[377325828,1754346645185,-151.0,0.00049698,120]
[377325829,1754346645195,-151.0,0.00049698,120]
[377325830,1754346645206,-151.0,0.000497,120]
[377325831,1754346645217,-151.0,0.000497,120]
[377325832,1754346645229,-13312.61596997,0.000497,50]
[377325833,1754346645240,-151.0,0.000497,120]
[377325834,1754346645253,-151.0,0.000497,120]
[377325835,1754346645264,-151.0,0.000497,120]
[377325836,1754346645274,-502.0,0.000497,30]
[377325837,1754346645284,-161.32,0.000497,2]
[377325838,1754346645294,-2900.0,0.000497,18]
[377325839,1754346645303,-379.0,0.000497,30]
[377325840,1754346645313,-775.0,0.000497,30]
[377325841,1754346645322,-239.0,0.000497,30]
[377325842,1754346645332,-1098.74452881,0.00049714,90]
[377325843,1754346645342,-1806.1175663,0.00049715,2]
[377325844,1754346645352,-1103.78913293,0.00049717,90]
[377325845,1754346645361,-1416.068,0.0004972,48]
[377325846,1754346645371,-151.0,0.00049725,120]
[377325847,1754346645382,-151.0,0.00049725,120]
[377325848,1754346645391,-151.0,0.00049725,120]
[377325849,1754346645401,-151.0,0.00049725,120]
[377325850,1754346645411,-151.0,0.00049725,120]
[377325851,1754346645420,-151.0,0.00049725,120]
[377325852,1754346645430,-151.0,0.00049725,120]
[377325853,1754346645440,-150.03637338,0.00049731,120]
[377325854,1754346645450,-150.03637338,0.00049788,120]
[377325855,1754346645460,-2099.999999,0.000498,30]
[377325856,1754346645471,-2130.08,0.000498,60]
[377325857,1754346645481,-1164.56,0.000498,30]
[377325858,1754346645491,-151.0,0.000498,120]
[377325859,1754346645500,-150.0,0.000498,80]
[377325860,1754346645511,-151.0,0.000498,90]
[377325861,1754346645520,-151.0,0.000498,120]
[377325862,1754346645530,-3900.0,0.000498,18]
[377325863,1754346645540,-3038.2053,0.000498,30]
[377325864,1754346645549,-2326.9885,0.000498,30]
[377325865,1754346645559,-1921.7211,0.000498,30]
[377325866,1754346645568,-222.92,0.00049842,14]
[377325867,1754346645578,-150.03637338,0.00049844,120]
[377325868,1754346645590,-840.67,0.00049846,120]
[377325869,1754346645600,-1498.4532,0.0004987,120]
[377325870,1754346645610,-505.4743943,0.00049873,10]
[377325871,1754346645620,-151.53,0.00049887,120]
[377325872,1754346645630,-703.23672435,0.00049889,30]
[377325873,1754346645640,-300.0,0.00049889,30]
[377325874,1754346645650,-53132.49215824,0.0004989,30]
[377325875,1754346645660,-1734.13794676,0.0004989,30]
[377325876,1754346645670,-151.0,0.0004989,120]
[377325877,1754346645680,-305.998814,0.0004989,120]
[377325878,1754346645690,-305.998814,0.0004989,120]
[377325879,1754346645700,-151.0,0.0004989,120]
[377325880,1754346645710,-174.72232,0.0004989,120]
[377325881,1754346645720,-174.72232,0.0004989,120]
[377325882,1754346645729,-151.0,0.0004989,120]
[377325883,1754346645739,-151.0,0.0004989,120]
[377325884,1754346645749,-151.0,0.0004989,120]
[377325885,1754346645759,-151.0,0.0004989,120]
[377325886,1754346645769,-151.0,0.0004989,120]
[377325887,1754346645780,-151.0,0.0004989,120]
[377325888,1754346645790,-151.0,0.0004989,120]
[377325889,1754346645799,-151.0,0.0004989,60]
[377325890,1754346645810,-151.0,0.0004989,60]
[377325891,1754346645819,-151.000001,0.0004989,120]
[377325892,1754346645829,-151.0,0.0004989,120]
[377325893,1754346645840,-151.0,0.0004989,120]
[377325894,1754346645850,-151.0,0.0004989,120]
[377325895,1754346645860,-151.0,0.0004989,120]
[377325896,1754346645871,-268.835712,0.0004989,120]
[377325897,1754346645884,-223.03313,0.0004989,120]
[377325898,1754346645894,-50503.68424847,0.00049899,120]
[377325899,1754346645906,-151.0,0.00049899,120]
[377325900,1754346645917,-151.0,0.00049899,120]
[377325901,1754346645928,-151.0,0.00049899,120]
[377325902,1754346645939,-151.0,0.00049899,120]
[377325903,1754346645950,-151.0,0.00049899,120]
[377325904,1754346645962,-151.0,0.000499,120]
[377325905,1754346645974,-4900.0,0.000499,18]
[377325906,1754346645985,-150.03637338,0.000499,120]
[377325907,1754346645995,-1283.7456519,0.000499,2]
[377325908,1754346646005,-151.0,0.0004991,120]
[377325909,1754346646016,-500.0,0.00049912,120]
[377325910,1754346646025,-21420.91231969,0.00049944,15]
[377325911,1754346646035,-200.0,0.00049945,120]
[377325912,1754346646045,-200.0,0.00049945,120]
[377325913,1754346646054,-200.0,0.00049945,120]
[377325914,1754346646064,-150.0,0.00049945,120]
[377325915,1754346646076,-500.0,0.00049945,120]
[377325916,1754346646087,-200.0,0.00049945,120]
[377325917,1754346646097,-500.0,0.00049945,120]
[377325918,1754346646107,-500.0,0.00049945,120]
[377325919,1754346646116,-500.0,0.00049945,120]
[377325920,1754346646128,-447.0,0.00049945,120]
[377325921,1754346646139,-220.04335411,0.00049945,120]
[377325922,1754346646151,-500.0,0.00049945,120]
[377325923,1754346646162,-500.0,0.00049945,120]
[377325924,1754346646175,-500.0,0.00049945,120]
[377325925,1754346646185,-250.0,0.00049945,120]
[377325926,1754346646196,-150.0,0.00049945,120]
[377325927,1754346646208,-500.0,0.00049945,120]
[377325928,1754346646218,-800.0,0.00049957,120]
[377325929,1754346646228,-224.5,0.00049959,120]
[377325930,1754346646238,-151.0,0.00049966,120]
[377325931,1754346646247,-151.0,0.00049966,120]
[377325932,1754346646257,-150.5,0.00049969,120]
[377325933,1754346646267,-1416.068,0.0004997,49]
[377325934,1754346646278,-262.7990227,0.00049973,3]
[377325935,1754346646289,-500.0,0.00049973,10]
[377325936,1754346646299,-467.18064997,0.00049973,10]
[377325937,1754346646309,-151.0,0.00049978,120]
[377325938,1754346646320,-150.5,0.00049979,120]
[377325939,1754346646329,-300.0,0.00049989,30]
[377325940,1754346646339,-152.817705,0.0004999,120]
[377325941,1754346646349,-151.0,0.0004999,120]
[377325942,1754346646359,-151.0,0.0004999,120]
[377325943,1754346646369,-151.0,0.0004999,120]
[377325944,1754346646378,-151.266201,0.0004999,120]
[377325945,1754346646388,-151.0,0.0004999,120]
[377325946,1754346646398,-151.0,0.0004999,60]
[377325947,1754346646416,-151.0,0.0004999,120]
[377325948,1754346646439,-1139.866754,0.0004999,120]
[377325949,1754346646448,-1139.866754,0.0004999,120]
[377325950,1754346646458,-151.0,0.0004999,120]
[377325951,1754346646468,-151.0,0.0004999,120]
[377325952,1754346646478,-157.601212,0.0004999,120]
[377325953,1754346646488,-157.601212,0.0004999,120]
[377325954,1754346646498,-151.0,0.0004999,120]
[377325955,1754346646508,-151.0,0.0004999,120]
[377325956,1754346646518,-151.0,0.0004999,120]
[377325957,1754346646528,-151.0,0.0004999,120]
[377325958,1754346646537,-151.0,0.0004999,120]
[377325959,1754346646547,-151.0,0.0004999,120]
[377325960,1754346646557,-254.827175,0.0004999,20]
[377325961,1754346646566,-151.0,0.0004999,120]
[377325962,1754346646576,-254.827175,0.0004999,20]
[377325963,1754346646586,-273.077752,0.0004999,120]
[377325964,1754346646598,-151.0,0.0004999,120]
[377325965,1754346646608,-259.578622,0.0004999,120]
[377325966,1754346646618,-259.578622,0.0004999,120]
[377325967,1754346646628,-153.139476,0.0004999,120]
[377325969,1754346646638,-658.630549,0.0004999,120]
[377325971,1754346646648,-658.630549,0.0004999,120]
[377325972,1754346646659,-151.0,0.0004999,120]
[377325974,1754346646669,-151.0,0.0004999,120]
[377325976,1754346646680,-267345.06952587,0.00049992,7]
[377325977,1754346648254,-300.0,0.00049582,120]
[377325978,1754346648265,-500.0,0.00049582,120]
[377325979,1754346648275,-300.0,0.00049582,120]
[377325980,1754346648285,-500.0,0.00049582,120]
[377325981,1754346648295,-300.0,0.00049582,120]
[377325982,1754346648305,-67700.0,0.00049992,7]
[377325983,1754346648337,-315.32000001,0.00049564,7]
[377325984,1754346648350,-85.85847069,0.00049564,7]
[377325985,1754346648361,-4614.34152931,0.00049992,7]
[377325986,1754346648374,-1612.59663077,0.00049992,7]
[377325987,1754346648386,-963.24044656,0.00049992,7]
[377325988,1754346649792,-500.0,0.00049582,120]
[377325989,1754346649803,-300.0,0.00049582,120]
[377325990,1754346649813,-500.0,0.00049582,120]
[377325991,1754346649823,-226.09732477,0.00049582,120]
[377325992,1754346649833,-100.49720682,0.00049582,120]
[377325993,1754346649846,-399.50279318,0.00049582,120]
[377325994,1754346649856,-256.31190065,0.00049582,120]
[377325995,1754346650128,-243.68809935,0.00049582,120]
[377325996,1754346650137,-646.08513178,0.00049992,7]
[377325997,1754346652420,-308.77836,0.00049582,120]
[377325998,1754346693519,-348.6892953,0.00038359,15]
[377326000,1754346737985,-272.88350974,0.00038358,5]